fUSD/lending_fUSD_20241001
["ID","MTS","AMOUNT","RATE_DAILY","PERIOD"]
[339643309,1727793133349,184.1104,9.282e-05,2]
[339643310,1727793133377,291.3896,9.282e-05,2]
[339643315,1727793382866,34285.38820845,0.00022,120]
[339643319,1727793822440,150.0,8.364e-05,2]
[339643320,1727793822464,150.0,8.364e-05,2]
[339643321,1727793822486,150.0,8.364e-05,2]
[339643322,1727793822508,29.47,8.364e-05,2]
[339643323,1727793906485,150.0,9.888e-05,2]
[339643324,1727793906847,150.0,9.93e-05,2]
[339643325,1727793907175,150.0,9.972e-05,2]
[339643326,1727793912177,150.0,9.888e-05,2]
[339643327,1727793922038,150.0,9.888e-05,2]
[339643328,1727793932421,150.0,9.888e-05,2]
[339643329,1727793945388,150.0,9.957e-05,2]
[339643330,1727793945410,150.0,9.957e-05,2]
[339643331,1727793945431,150.0,9.957e-05,2]
[339643332,1727793945453,150.0,9.957e-05,2]
[339643333,1727793945477,150.0,9.957e-05,2]
[339643334,1727793945499,150.0,9.957e-05,2]
[339643335,1727793945520,129.77756922,9.957e-05,2]
[339643336,1727793950358,150.0,9.978e-05,2]
[339643337,1727793950377,150.0,9.978e-05,2]
[339643338,1727793950398,150.0,9.978e-05,2]
[339643339,1727793950418,150.0,9.978e-05,2]
[339643340,1727793950438,150.0,9.978e-05,2]
[339643341,1727793950458,185.11587756,9.978e-05,2]
[339643342,1727793950482,94.66169166,9.978e-05,2]
[339643344,1727793955388,1029.77756922,9.999e-05,2]
[339643345,1727793971418,186.49,9.808e-05,2]
[339643346,1727793983506,150.0,9.957e-05,2]
[339643347,1727793983527,150.0,9.957e-05,2]
[339643348,1727793983549,225.56073912,9.957e-05,2]
[339643349,1727793983569,150.0,9.957e-05,2]
[339643350,1727793983591,3139.86190963,9.957e-05,2]
[339643351,1727793988603,150.0,9.961e-05,2]
[339643352,1727793988624,150.0,9.961e-05,2]
[339643353,1727793988644,150.0,9.961e-05,2]
[339643354,1727793988665,150.0,9.961e-05,2]
[339643355,1727793988685,150.0,9.961e-05,2]
[339643356,1727793988704,150.0,9.961e-05,2]
[339643357,1727793988724,150.0,9.961e-05,2]
[339643358,1727793988743,150.0,9.961e-05,2]
[339643359,1727793988764,150.0,9.961e-05,2]
[339643360,1727793988784,150.0,9.961e-05,2]
[339643361,1727793988804,150.0,9.961e-05,2]
[339643362,1727793988825,150.0,9.961e-05,2]
[339643363,1727793988849,2015.42264872,9.961e-05,2]
[339643364,1727793993679,3815.42264872,9.965e-05,2]
[339643365,1727793998580,150.0,9.968e-05,2]
[339643366,1727793998603,150.0,9.968e-05,2]
[339643367,1727793998625,150.0,9.968e-05,2]
[339643368,1727793998648,207.43,9.968e-05,2]
[339643369,1727793998671,3157.99264872,9.968e-05,2]
[339643370,1727794003762,3815.42264872,9.972e-05,2]
[339643371,1727794008672,3815.42264872,9.976e-05,2]
[339643372,1727794013471,3815.42264872,9.98e-05,2]
[339643373,1727794018498,3815.42264872,9.984e-05,2]
[339643374,1727794023546,3815.42264872,9.988e-05,2]
[339643375,1727794028482,3815.42264872,9.991e-05,2]
[339643376,1727794033535,3815.42264872,9.995e-05,2]
[339643377,1727794038650,3815.42264872,9.999e-05,2]
[339643378,1727794049901,150.0,9.764e-05,2]
[339643379,1727794078844,256.74,9.755e-05,2]
[339643380,1727794134209,600.0,1e-05,2]
[339643396,1727794231903,-150.0,0.00010014,2]
[339643397,1727794231912,-150.0,0.00010057,2]
[339643398,1727794231922,-150.0,0.00010099,2]
[339643399,1727794231932,-98.6778876,0.00010107,2]
[339643400,1727794231943,-51.3221124,0.00010107,2]
[339643401,1727794231952,-150.0,0.00010141,2]
[339643402,1727794231963,-150.0,0.00010183,2]
[339643403,1727794231972,-1000.0,0.00010223,2]
[339643404,1727794231981,-150.0,0.00010226,2]
[339643405,1727794231990,-299.99,0.00010226,2]
[339643406,1727794231999,-334.5266876,0.00010251,2]
[339643407,1727794232014,-486.9833124,0.00010251,2]
[339643408,1727794232023,-150.99,0.00010251,2]
[339643409,1727794232032,-1502.79,0.00010252,2]
[339643410,1727794232041,-150.99,0.00010252,2]
[339643411,1727794232050,-847.8,0.00010252,2]
[339643412,1727794232059,-1173.21,0.00010252,2]
[339643413,1727794232068,-499.99,0.00010252,2]
[339643414,1727794232077,-1905.67,0.00010252,2]
[339643415,1727794232086,-3834.2667872,0.00010252,2]
[339643416,1727794232097,-980.23063339,0.00010252,2]
[339643417,1727794232108,-5599.02414876,0.00010252,2]
[339643418,1727794232119,-3576.97871244,0.00010252,2]
[339643419,1727794232130,-4477.92071747,0.00010252,2]
[339643420,1727794232154,-1023.36525247,0.00010252,2]
[339643421,1727794232166,-696.77431602,0.00010252,2]
[339643422,1727794232177,-315.40449296,0.00010252,2]
[339643423,1727794232188,-1085.48025234,0.00010252,2]
[339643424,1727794232199,-3137.82155,0.00010252,2]
[339643425,1727794232210,-27296.55313695,0.00010252,2]
[339643426,1727794232219,-1320.14,0.00010252,2]
[339643427,1727794232228,-20119.72,0.00010253,2]
[339643428,1727794232237,-150.0,0.00010268,2]
[339643429,1727794232247,-778.03,0.00010289,2]
[339643430,1727794232259,-150.0,0.00010327,2]
[339643431,1727794232268,-150.0,0.00010547,2]
[339643432,1727794232391,-479.47,0.00010628,2]
[339643433,1727794232403,-150.0,0.00010767,2]
[339643434,1727794232413,-624.992,0.0001078,2]
[339643435,1727794232422,-167.161,0.0001078,2]
[339643436,1727794232432,-813.6131,0.000108,2]
[339643437,1727794232442,-619.91234272,0.00010842,2]
[339643438,1727794232452,-409.80817906,0.00010899,2]
[339643439,1727794232462,-1959.43182906,0.00010899,2]
[339643440,1727794232472,-150.0,0.00010899,2]
[339643441,1727794232482,-433.2501,0.000109,2]
[339643442,1727794232492,-7491.0331,0.000109,2]
[339643443,1727794232502,-83131.7565,0.000109,2]
[339643444,1727794232523,-497.2572,0.000109,2]
[339643445,1727794232533,-4010.1616,0.000109,2]
[339643446,1727794232544,-2400.0,0.000109,2]
[339643447,1727794232554,-167.49616479,0.000109,2]
[339643448,1727794232566,-371.0706,0.000109,2]
[339643449,1727794232580,-1002.5141,0.000109,2]
[339643450,1727794232590,-3191.7325,0.000109,2]
[339643451,1727794232601,-172.2411,0.000109,2]
[339643452,1727794232612,-413.078,0.000109,2]
[339643453,1727794232622,-1474.6495,0.000109,2]
[339643454,1727794232631,-618.6766,0.000109,2]
[339643455,1727794232641,-369.2051,0.000109,2]
[339643456,1727794232651,-949.3825,0.000109,2]
[339643457,1727794232661,-5707.528,0.000109,2]
[339643458,1727794232671,-2113.7809,0.000109,2]
[339643459,1727794232682,-1682.2527,0.000109,2]
[339643460,1727794232691,-628.60390416,0.000109,2]
[339643461,1727794232702,-792.60427248,0.000109,2]
[339643462,1727794232712,-205.05369748,0.000109,2]
[339643463,1727794232722,-163.89,0.00010959,2]
[339643464,1727794232732,-250.0,0.00010959,2]
[339643465,1727794232742,-176.37,0.00010959,2]
[339643466,1727794232752,-3882.29,0.00010959,2]
[339643467,1727794232772,-256.74,0.00010974,2]
[339643468,1727794232782,-150.0,0.00010986,2]
[339643469,1727794232791,-151.04,0.0001099,2]
[339643470,1727794232801,-216.74872702,0.0001099,2]
[339643471,1727794232810,-151.04,0.0001099,2]
[339643472,1727794232819,-546.65886988,0.00010999,2]
[339643473,1727794232829,-500.0,0.00010999,2]
[339643474,1727794232838,-500.0,0.00010999,2]
[339643475,1727794232848,-433.05859171,0.00010999,2]
[339643476,1727794232857,-502.16234457,0.00010999,2]
[339643477,1727794232867,-500.0,0.00010999,2]
[339643478,1727794232876,-207.83565532,0.00010999,2]
[339643479,1727794232887,-500.0,0.00010999,2]
[339643480,1727794232897,-500.0,0.00010999,2]
[339643481,1727794232906,-500.0,0.00010999,2]
[339643482,1727794232915,-500.0,0.00010999,2]
[339643483,1727794232924,-500.0,0.00010999,2]
[339643484,1727794232934,-330.97423083,0.00010999,2]
[339643485,1727794232943,-343400.52532519,0.00011,2]
[339643486,1727794232955,-777.95581629,0.00011,2]
[339643487,1727794232979,-5147.3222742,0.00011,2]
[339643488,1727794232991,-475.92038193,0.00011,2]
[339643489,1727794233002,-320908.38541602,0.00011,2]
[339643490,1727794233021,-8375.54132077,0.00011,2]
[339643491,1727794233032,-1182.73708964,0.00011,2]
[339643492,1727794233044,-300.75376989,0.00011,2]
[339643493,1727794233067,-630.08,0.00011,2]
[339643494,1727794233078,-544.02,0.00011,2]
[339643495,1727794233102,-590454.49145441,0.00011,2]
[339643496,1727794233132,-933.02645237,0.00011,2]
[339643497,1727794233152,-765.29022052,0.00011,2]
[339643498,1727794233174,-5673.50863488,0.00011,2]
[339643499,1727794233221,-603.03497768,0.00011,2]
[339643504,1727794238164,-4398.73486,0.00011,2]
[339643505,1727794238579,-2824.50547269,0.00011,2]
[339643506,1727794238590,-799.82339141,0.00011,2]
[339643507,1727794238602,-3999.75158982,0.00011,2]
[339643517,1727794239969,-2437.50003,0.00011,2]
[339643518,1727794239981,-277710.35404365,0.00011,2]
[339643519,1727794239990,-169115.47830357,0.00011,2]
[339643520,1727794240002,-20979.80794632,0.00011,2]
[339643521,1727794240014,-6277.68472232,0.00011,2]
[339643522,1727794240038,-2826.245,0.00011,2]
[339643530,1727794242920,-838355.69726767,0.00011,2]
[339643532,1727794242976,-306.38000006,0.00011,2]
[339643533,1727794242987,-46143.37703574,0.00011,2]
[339643534,1727794242998,-2581.2614539,0.00011,2]
[339643535,1727794243010,-8823.6328315,0.00011,2]
[339643536,1727794243023,-1858.93673647,0.00011,2]
[339643537,1727794243039,-21742.3368707,0.00011,2]
[339643538,1727794243050,-1095.78215054,0.00011,2]
[339643539,1727794243275,-2108.19701173,0.00011,2]
[339643540,1727794243287,-6935.87495374,0.00011,2]
[339643541,1727794243299,-20105.3747752,0.00011,2]
[339643575,1727794245937,-1255.34,0.00011,2]
[339643578,1727794245949,-1895.63286145,0.00011,2]
[339643583,1727794245980,-402.5699328,0.00011,2]
[339643585,1727794245991,-1117.16595754,0.00011,2]
[339643586,1727794246003,-15700.0,0.00011,2]
[339643589,1727794246038,-4865.54622921,0.00011,2]
[339643600,1727794246138,-13705.134517,0.00011,2]
[339643602,1727794246150,-408.27049823,0.00011,2]
[339643605,1727794246162,-8860.00502439,0.00011,2]
[339643607,1727794246175,-4943.43172972,0.00011,2]
[339643639,1727794274903,387.6,0.00022,120]
[339643640,1727794373625,150.0,9.041e-05,2]
[339643641,1727794373647,150.0,9.041e-05,2]
[339643642,1727794373669,224.92774354,9.041e-05,2]
[339643643,1727794373693,48.79225646,9.041e-05,2]
[339643647,1727794910856,-391.44,0.00010334,2]
[339643648,1727794910878,-180.08,0.00010343,2]
[339643649,1727794910900,-415.06,0.00010403,2]
[339643650,1727794910923,-250.0,0.00010414,2]
[339643651,1727794910944,-389.01,0.00010517,2]
[339643652,1727794910966,-300.0,0.00010799,2]
[339643653,1727794910988,-8074.41,0.000108,2]
[339643654,1727794935943,-800.0,0.00010797,2]
[339643655,1727794935964,-1700.0,0.000108,2]
[339643656,1727794961750,1305.4752233,0.00021,60]
[339643657,1727794992870,571.28,8.767e-05,2]
[339643658,1727795107076,150.0,9.888e-05,2]
[339643659,1727795107393,150.0,9.956e-05,2]
[339643660,1727795121922,150.0,9.888e-05,2]
[339643661,1727795122241,150.0,9.979e-05,2]
[339643662,1727795172528,-150.0,0.00010025,2]
[339643663,1727795172552,-150.0,0.00010071,2]
[339643664,1727795172575,-150.0,0.00010094,2]
[339643665,1727795172600,-150.0,0.00010162,2]
[339643666,1727795172624,-150.0,0.00010162,2]
[339643667,1727795172647,-150.0,0.00010231,2]
[339643668,1727795172669,-150.0,0.00010254,2]
[339643669,1727795172693,-150.0,0.000103,2]
[339643670,1727795172717,-150.0,0.00010345,2]
[339643671,1727795172743,-150.0,0.00010368,2]
[339643672,1727795172768,-150.0,0.00010437,2]
[339643673,1727795172792,-150.0,0.00010437,2]
[339643674,1727795172815,-150.99,0.00010437,2]
[339643675,1727795172839,-150.0,0.00010506,2]
[339643676,1727795172862,-150.0,0.00010529,2]
[339643677,1727795172885,-250.0,0.00010547,2]
[339643678,1727795172909,-150.0,0.00010574,2]
[339643679,1727795172932,-194.5,0.000106,2]
[339643680,1727795172956,-150.0,0.0001062,2]
[339643681,1727795172982,-150.0,0.00010643,2]
[339643682,1727795173006,-150.0,0.00010712,2]
[339643683,1727795173032,-150.0,0.00010712,2]
[339643684,1727795173056,-150.0,0.0001078,2]
[339643685,1727795173079,-1404.51,0.000108,2]
[339643698,1727795432157,-640.0,0.000108,2]
[339643699,1727795432376,-1462.0547,0.000108,2]
[339643700,1727795432387,-150.0,0.00010803,2]
[339643701,1727795432399,-150.0,0.00010849,2]
[339643702,1727795432411,-215.695508,0.0001089,2]
[339643703,1727795432444,-86.304492,0.0001089,2]
[339643704,1727795432456,-150.0,0.00010895,2]
[339643705,1727795432468,-384.21613336,0.00010899,2]
[339643706,1727795432482,-615.78386664,0.00010899,2]
[339643707,1727795432494,-150.0,0.00010899,2]
[339643708,1727795432505,-234.61113336,0.00010899,2]
[339643709,1727795432533,-65.38886664,0.00010899,2]
[339643710,1727795432545,-1136.44,0.000109,2]
[339643711,1727795432556,-225.9495,0.000109,2]
[339643712,1727795432567,-1685.33163336,0.000109,2]
[339643716,1727795438041,-8048.08808712,0.000109,2]
[339643718,1727795438052,-1953.74880888,0.000109,2]
[339643719,1727795438078,-4245.76007064,0.000109,2]
[339643720,1727795438088,-2357.80715962,0.000109,2]
[339643721,1727795438097,-3184.5597,0.000109,2]
[339643722,1727795438111,-21320.99474099,0.000109,2]
[339643723,1727795438131,-376.00195901,0.000109,2]
[339643724,1727795438140,-167.49616479,0.000109,2]
[339643725,1727795438150,-499.993,0.000109,2]
[339643726,1727795438159,-167.161,0.000109,2]
[339643727,1727795438168,-40.5978762,0.000109,2]
[339643728,1727795438256,-2413.31458006,0.000109,2]
[339643729,1727795438265,-465.84460876,0.000109,2]
[339643730,1727795438275,-150.0,0.00010918,2]
[339643731,1727795438285,-200.0,0.00010924,2]
[339643732,1727795438295,-464.57,0.00010924,2]
[339643733,1727795438304,-158.61,0.00010924,2]
[339643734,1727795438314,-179.36,0.00010933,2]
[339643735,1727795438323,-171.38,0.00010959,2]
[339643736,1727795438333,-163.72,0.00010959,2]
[339643737,1727795438342,-250.0,0.00010959,2]
[339643738,1727795438351,-195.58,0.00010959,2]
[339643739,1727795438370,-165.07917581,0.00010986,2]
[339643740,1727795438379,-150.0,0.00010986,2]
[339643741,1727795438389,-2500.0,0.00010999,2]
[339643742,1727795438398,-2500.0,0.00010999,2]
[339643743,1727795438407,-2500.0,0.00010999,2]
[339643744,1727795438417,-2500.0,0.00010999,2]
[339643745,1727795438425,-2500.0,0.00010999,2]
[339643746,1727795438435,-2500.0,0.00010999,2]
[339643747,1727795438444,-2500.0,0.00010999,2]
[339643748,1727795438454,-2500.0,0.00010999,2]
[339643749,1727795438463,-1008.09960904,0.00010999,2]
[339643751,1727795438472,-193213.7391836,0.00011,2]
[339643753,1727795438482,-2303446.02312473,0.00011,2]
[339643754,1727795438493,-5645.28985406,0.00011,2]
[339643755,1727795438504,-2532.4,0.00011,2]
[339643757,1727795438515,-329270.27111953,0.00011,2]
[339643759,1727795438526,-1091.09600303,0.00011,2]
[339643764,1727795438586,-18618.82177197,0.00011,2]
[339643765,1727795438596,-764.32798312,0.00011,2]
[339643766,1727795438615,-1001.68431733,0.00011,2]
[339643767,1727795438626,-1452.48255403,0.00011,2]
[339643768,1727795438637,-621.29,0.00011,2]
[339643770,1727795438648,-1215.08315684,0.00011,2]
[339643772,1727795438660,-1625.61586106,0.00011,2]
[339643775,1727795440054,-251.474,0.00011,2]
[339643776,1727795440066,-17912.61485738,0.00011,2]
[339643777,1727795440287,-499.39408115,0.00011,2]
[339643778,1727795440299,-2478.37492427,0.00011,2]
[339643779,1727795440428,-8416.46845418,0.00011,2]
[339643780,1727795440452,-280.216,0.00011,2]
[339643781,1727795440463,-310.435,0.00011,2]
[339643782,1727795440475,-1525.4621336,0.00011,2]
[339643785,1727795440491,-5023.99999999,0.00011,2]
[339643786,1727795440504,-494.75218244,0.00011,2]
[339643787,1727795440515,-847.9,0.00011,2]
[339643788,1727795440528,-6909.0,0.00011,2]
[339643789,1727795440540,-500.0015979,0.00011,2]
[339643815,1727795443087,-758.49771291,0.00011,2]
[339643816,1727795443126,-1746.35459375,0.00011,2]
[339643817,1727795443137,-2491.24,0.00011,2]
[339643818,1727795443264,-377.24506424,0.00011,2]
[339643819,1727795443276,-4490.09428427,0.00011,2]
[339643820,1727795443287,-1552.525,0.00011,2]
[339643821,1727795443297,-26130.28111059,0.00011,2]
[339643822,1727795443308,-32662.83774857,0.00011,2]
[339643823,1727795443319,-542.2,0.00011,2]
[339643824,1727795443330,-759.99998,0.00011,2]
[339643825,1727795443341,-710.0,0.00011,2]
[339643826,1727795443352,-622.01,0.00011,2]
[339643827,1727795443370,-325.90071632,0.00011,2]
[339643828,1727795443381,-9989.3277,0.00011,2]
[339643829,1727795443393,-7345.5574327,0.00011,2]
[339643831,1727795443408,-15552.37995587,0.00011,2]
[339643832,1727795443419,-29764.5633728,0.00011,2]
[339643833,1727795443430,-1250.0,0.00011,2]
[339643834,1727795443441,-10993.001,0.00011,2]
[339643835,1727795443452,-300.0000002,0.00011,2]
[339643836,1727795443463,-2180.37715403,0.00011,2]
[339643837,1727795443475,-297.97777159,0.00011,2]
[339643838,1727795443486,-5049.99999962,0.00011,2]
[339643874,1727795446187,-1539.0,0.00011,2]
[339643875,1727795446203,-6236.23,0.00011,2]
[339643876,1727795446214,-425.7695,0.00011,2]
[339643886,1727795446525,-1148.5859104,0.00011,2]
[339643889,1727795446548,-6251.836606,0.00011,2]
[339643891,1727795446559,-491.29749755,0.00011,2]
[339643893,1727795446572,-4789.74269221,0.00011,2]
[339643896,1727795446587,-12025.6277018,0.00011,2]
[339643900,1727795446598,-5834.87436924,0.00011,2]
[339643903,1727795446619,-9018.04826349,0.00011,2]
[339643906,1727795446630,-18683.28706415,0.00011,2]
[339643909,1727795446641,-255.00000002,0.00011,2]
[339643913,1727795446653,-631.49999999,0.00011,2]
[339643938,1727795446880,-602.34500584,0.00011,2]
[339644069,1727795543520,563.33,9.086e-05,2]
[339644070,1727796095538,535.16,8.221e-05,2]
[339644071,1727796276137,1000.0,0.00022,120]
[339644072,1727796301575,150.0,0.00022,120]
[339644073,1727796354572,443.6779364,6.94e-05,2]
[339644075,1727796513372,211.92203942,0.0001,2]
[339644095,1727796632400,-204.08,0.00010067,2]
[339644096,1727796632410,-107.235,0.00010076,2]
[339644097,1727796632585,-142.765,0.00010076,2]
[339644098,1727796632594,-154.04,0.00010088,2]
[339644099,1727796632604,-762.24895185,0.000101,2]
[339644100,1727796632614,-246.08611509,0.000101,2]
[339644101,1727796632623,-928.71659519,0.000101,2]
[339644102,1727796632633,-250.0,0.00010173,2]
[339644103,1727796632643,-640.0,0.00010203,2]
[339644104,1727796632652,-186.5,0.00010259,2]
[339644105,1727796632662,-535.16,0.00010485,2]
[339644106,1727796632672,-189.98,0.0001057,2]
[339644107,1727796632682,-800.0,0.000106,3]
[339644108,1727796632692,-1600.0,0.000107,3]
[339644109,1727796632702,-637.4473,0.000108,2]
[339644110,1727796632711,-2400.0,0.000108,3]
[339644111,1727796632721,-1086.6118,0.00010897,2]
[339644112,1727796632730,-150.0,0.00010899,2]
[339644113,1727796632740,-1565.8509,0.000109,2]
[339644114,1727796632749,-2875.997,0.000109,2]
[339644120,1727796632962,-945.5484,0.000109,2]
[339644121,1727796632972,-1554.5756,0.000109,2]
[339644122,1727796632981,-1475.3221,0.000109,2]
[339644123,1727796632990,-2500.0,0.000109,2]
[339644124,1727796633000,-817.7258,0.000109,2]
[339644125,1727796633009,-2956.7181,0.000109,2]
[339644126,1727796633019,-6135.2003,0.000109,2]
[339644127,1727796633028,-3200.0,0.000109,3]
[339644128,1727796633037,-310.5630725,0.000109,2]
[339644129,1727796633047,-13268.6891,0.000109,2]
[339644130,1727796633056,-2047.80812392,0.000109,2]
[339644131,1727796633066,-151.69,0.00010959,2]
[339644132,1727796633077,-156.46,0.00010959,2]
[339644133,1727796633086,-150.00000001,0.00010973,2]
[339644134,1727796633096,-150.0,0.00010973,2]
[339644135,1727796633106,-155.89,0.00010986,2]
[339644136,1727796633116,-167.16258322,0.00010986,2]
[339644137,1727796633125,-399.995,0.00010986,2]
[339644138,1727796633136,-150.26,0.0001099,2]
[339644139,1727796633146,-150.26,0.0001099,2]
[339644140,1727796633156,-150.26,0.0001099,2]
[339644141,1727796633165,-150.26,0.0001099,2]
[339644142,1727796633175,-150.26,0.0001099,2]
[339644143,1727796633185,-150.26,0.0001099,2]
[339644144,1727796633195,-150.26,0.0001099,2]
[339644145,1727796633205,-150.26,0.0001099,2]
[339644146,1727796633215,-150.26,0.0001099,2]
[339644147,1727796633225,-150.26,0.0001099,2]
[339644148,1727796633235,-150.26,0.0001099,2]
[339644149,1727796633246,-150.26,0.0001099,2]
[339644150,1727796633255,-150.26,0.0001099,2]
[339644151,1727796633264,-150.26,0.0001099,2]
[339644152,1727796633274,-150.26,0.0001099,2]
[339644153,1727796633284,-150.26,0.0001099,2]
[339644154,1727796633294,-150.26,0.0001099,2]
[339644155,1727796633303,-150.26,0.0001099,2]
[339644156,1727796633313,-36386.7156394,0.00010997,2]
[339644157,1727796633322,-44426.2217136,0.00010997,2]
[339644158,1727796633337,-5440.8117084,0.00010997,2]
[339644159,1727796633349,-15747.773214,0.00010997,2]
[339644160,1727796633359,-956.63995373,0.00010999,2]
[339644161,1727796633368,-2272.77735654,0.00010999,2]
[339644162,1727796633378,-121165.00761394,0.00011,2]
[339644163,1727796633397,-150.26,0.0001099,2]
[339644164,1727796633406,-15414.89638153,0.00011,2]
[339644167,1727796638373,-677.06162226,0.00011,2]
[339644168,1727796638436,-1842.46640648,0.00011,2]
[339644169,1727796638448,-4010.97114,0.00011,2]
[339644170,1727796638605,-3771.1072,0.00011,2]
[339644171,1727796638655,-511.27037593,0.00011,2]
[339644224,1727796640341,-554.43344448,0.00011,2]
[339644226,1727796640352,-3105.7489866,0.00011,2]
[339644230,1727796640402,-2316.03526726,0.00011,2]
[339644231,1727796640414,-15276.33223434,0.00011,2]
[339644232,1727796640425,-624.5,0.00011,2]
[339644233,1727796640465,-19832.05303841,0.00011,2]
[339644234,1727796640477,-6254.44724475,0.00011,2]
[339644235,1727796640488,-5876.33786434,0.00011,2]
[339644239,1727796643286,-605.70812265,0.000109,2]
[339644240,1727796643298,-254.78747735,0.000109,2]
[339644241,1727796643308,-87.09743738,0.00010999,2]
[339644242,1727796643320,-391.22253948,0.00010999,2]
[339644243,1727796643329,-80.21877378,0.00011,2]
[339644244,1727796643344,-3674.2143007,0.00011,2]
[339644245,1727796643355,-412.1753019,0.00011,2]
[339644246,1727796643366,-534.52991176,0.00011,2]
[339644247,1727796643475,-106000.35614647,0.00011,2]
[339644248,1727796643485,-1879588.61388909,0.00011,2]
[339644249,1727796643497,-485.29999995,0.00011,2]
[339644250,1727796643509,-709.17,0.00011,2]
[339644267,1727796644442,-196715.70944399,0.00011,2]
[339644268,1727796644453,-6422.17472676,0.00011,2]
[339644269,1727796644465,-608.71372197,0.00011,2]
[339644270,1727796644477,-636.87818,0.00011,2]
[339644271,1727796644488,-19092.36740776,0.00011,2]
[339644272,1727796644499,-471.26515199,0.00011,2]
[339644273,1727796644508,-1050.0,0.00011,2]
[339644274,1727796644518,-200.0,0.00011,2]
[339644275,1727796644528,-200.0,0.00011,2]
[339644276,1727796644538,-1854.65019394,0.00011,2]
[339644277,1727796644549,-427161.839571,0.00011,2]
[339644278,1727796644560,-33499.91300064,0.00011,2]
[339644279,1727796644571,-1973.28541823,0.00011,2]
[339644280,1727796644583,-305.20127118,0.00011,2]
[339644281,1727796644597,-432.89653833,0.00011,2]
[339644282,1727796644609,-1117.28317245,0.00011,2]
[339644283,1727796644620,-363.33683964,0.00011,2]
[339644284,1727796644631,-32813.84726544,0.00011,2]
[339644285,1727796644643,-40007.47351251,0.00011,2]
[339644286,1727796644654,-2136.17160078,0.00011,2]
[339644287,1727796644665,-454.81929555,0.00011,2]
[339644288,1727796644676,-240733.04544264,0.00011,2]
[339644289,1727796644687,-1023.82317081,0.00011,2]
[339644290,1727796644699,-4445.23740939,0.00011,2]
[339644291,1727796644710,-2622.76888435,0.00011,2]
[339644292,1727796644721,-874.09898003,0.00011,2]
[339644293,1727796644732,-4697.08922901,0.00011,2]
[339644294,1727796644743,-2005.80185951,0.00011,2]
[339644295,1727796644755,-908.00465528,0.00011,2]
[339644296,1727796644767,-827.30933768,0.00011,2]
[339644297,1727796644779,-671.32315737,0.00011,2]
[339644298,1727796644802,-607.00378439,0.00011,2]
[339644299,1727796644813,-505.5664408,0.00011,2]
[339644300,1727796644824,-5640.87922465,0.00011,2]
[339644301,1727796644835,-522.41181023,0.00011,2]
[339644302,1727796644849,-4200.0,0.00011,2]
[339644303,1727796644860,-17459.92421963,0.00011,2]
[339644304,1727796644871,-2754.31674355,0.00011,2]
[339644324,1727796646229,-946.3744,0.00010897,2]
[339644326,1727796646238,-4263.76868199,0.00011,2]
[339644329,1727796646249,-442.82396974,0.00011,2]
[339644331,1727796646261,-22579.57251968,0.00011,2]
[339644334,1727796646282,-17061.62315174,0.00011,2]
[339644336,1727796646294,-147799.02933252,0.00011,2]
[339644338,1727796646305,-544.14569313,0.00011,2]
[339644340,1727796646316,-1041.98334023,0.00011,2]
[339644343,1727796646327,-299.07844765,0.00011,2]
[339644345,1727796646341,-2461.2845883,0.00011,2]
[339644347,1727796646352,-54447.98837163,0.00011,2]
[339644349,1727796646361,-135032.99672832,0.00011,2]